Workbook

Sheet Sheet1
L1: http://withseok.tistory.com
M2: Ver.231013.2353
B3: 두수의 최대 공약수 구하기 | F3: 첫 수 | G3: 두번째 수 | I3: 최대공약수 | L3: 순위
B4: 유클리드 알고리즘 이용 | F4: 527 | G4: 5921 | I4: =IF(AND(F5="정수",G5="정수"),IF(INDEX(C:C,MATCH(0,E:E,0),)=1,"서로소 (1)",INDEX(C:C,MATCH(0,E:E,0),)),"정수를 입력하세요.") -> 31 | J4: 최대공약소 | L4: =RANK(F4,$F$4:$G$4) -> 2 | M4: =RANK(G4,$F$4:$G$4) -> 1
F5: =IF(INT(F4)=F4,"정수","소수") -> 정수 | G5: =IF(INT(G4)=G4,"정수","소수") -> 정수 | I5: =IF(I4="서로소 (1)",(F4/1)*(G4/1)*1,(F4/I4)*(G4/I4)*I4) -> 100657 | J5: 최소공배수 | L5: =IF(L4=1,F4,G4) -> 5921 | M5: =IF(M4=2,G4,F4) -> 527
B6: 수1 | C6: 수2 | D6: 몫 | E6: 나머지 | I6: =F4&" x "&G4&" = "&IF(I4="서로소 (1)",1,I4)&" x "&I5 &" = "&F4*G4 -> 527 x 5921 = 31 x 100657 = 3120367 | J6: 관계 | L6: 비율
B7: =L5 -> 5921 | C7: =M5 -> 527 | D7: =(B7-E7)/C7 -> 11 | E7: =MOD(B7,C7) -> 124 | G7: =B7 -> 5921 | H7: = | I7: =" " & C7&" x "&D7&" + "&E7 -> 527 x 11 + 124 | L7: =(L5/I4)&" : "&(M5/I4) -> 191 : 17
B9: =IF(OR(E7="",E7=0),"",C7) -> 527 | C9: =IF(OR(E7="",E7=0),"",MOD(B7,C7)) -> 124 | D9: =IF(OR(E7="",E7=0),"",(B9-E9)/C9) -> 4 | E9: =IF(OR(E7="",E7=0),"",MOD(B9,C9)) -> 31 | G9: =B9 -> 527 | H9: =IF(OR(E7=0,E7=""),"","=") -> = | I9: =IF(OR(E7=0,E7=""),""," " & C9&" x "&D9&" + "&E9) -> 124 x 4 + 31 | L9: =(L5/I4)&" : "&(M5/I4)&" 비율로 유튜브 영상 비율 찾기" -> 191 : 17 비율로 유튜브 영상 비율 찾기
L10: 입력 가로 | M10: 결과 세로
B11: =IF(OR(E9="",E9=0),"",C9) -> 124 | C11: =IF(OR(E9="",E9=0),"",MOD(B9,C9)) -> 31 | D11: =IF(OR(E9="",E9=0),"",(B11-E11)/C11) -> 4 | E11: =IF(OR(E9="",E9=0),"",MOD(B11,C11)) -> 0 | G11: =B11 -> 124 | H11: =IF(OR(E9=0,E9=""),"","=") -> = | I11: =IF(OR(E9=0,E9=""),""," " & C11&" x "&D11&" + "&E11) -> 31 x 4 + 0 | L11: 440 | M11: =L11*(M5/I4)/(L5/I4) -> 39.16230366
L12: 결과 가로 | M12: 입력 세로
B13: =IF(OR(E11="",E11=0),"",C11) ->  | C13: =IF(OR(E11="",E11=0),"",MOD(B11,C11)) ->  | D13: =IF(OR(E11="",E11=0),"",(B13-E13)/C13) ->  | E13: =IF(OR(E11="",E11=0),"",MOD(B13,C13)) ->  | G13: =B13 ->  | H13: =IF(OR(E11=0,E11=""),"","=") ->  | I13: =IF(OR(E11=0,E11=""),""," " & C13&" x "&D13&" + "&E13) ->  | J13: 감추기 | L13: =M13*(L5/I4)/(M5/I4) -> 7078.235294 | M13: 630
J14: 감추기
B15: =IF(OR(E13="",E13=0),"",C13) ->  | C15: =IF(OR(E13="",E13=0),"",MOD(B13,C13)) ->  | D15: =IF(OR(E13="",E13=0),"",(B15-E15)/C15) ->  | E15: =IF(OR(E13="",E13=0),"",MOD(B15,C15)) ->  | G15: =B15 ->  | H15: =IF(OR(E13=0,E13=""),"","=") ->  | I15: =IF(OR(E13=0,E13=""),""," " & C15&" x "&D15&" + "&E15) ->  | J15: =Sheet2!L2 -> 31 | L15: 최대공약수를 구하기 위해
J16: 첫수 | L16: 수학자 유클리드에 의해
B17: =IF(OR(E15="",E15=0),"",C15) ->  | C17: =IF(OR(E15="",E15=0),"",MOD(B15,C15)) ->  | D17: =IF(OR(E15="",E15=0),"",(B17-E17)/C17) ->  | E17: =IF(OR(E15="",E15=0),"",MOD(B17,C17)) ->  | G17: =B17 ->  | H17: =IF(OR(E15=0,E15=""),"","=") ->  | I17: =IF(OR(E15=0,E15=""),""," " & C17&" x "&D17&" + "&E17) ->  | J17: =Sheet2!M3 -> 5921 | L17: 알려진 알고리즘입니다.
J18: 둘수 | L18: 互除法, Euclidean algorithm
B19: =IF(OR(E17="",E17=0),"",C17) ->  | C19: =IF(OR(E17="",E17=0),"",MOD(B17,C17)) ->  | D19: =IF(OR(E17="",E17=0),"",(B19-E19)/C19) ->  | E19: =IF(OR(E17="",E17=0),"",MOD(B19,C19)) ->  | G19: =B19 ->  | H19: =IF(OR(E17=0,E17=""),"","=") ->  | I19: =IF(OR(E17=0,E17=""),""," " & C19&" x "&D19&" + "&E19) ->  | J19: =Sheet2!M4 -> 527 | L19: 호제법이라고 부르기도 합니다.
J20: 셋수 | L20: 유클리드 알고리즘은
B21: =IF(OR(E19="",E19=0),"",C19) ->  | C21: =IF(OR(E19="",E19=0),"",MOD(B19,C19)) ->  | D21: =IF(OR(E19="",E19=0),"",(B21-E21)/C21) ->  | E21: =IF(OR(E19="",E19=0),"",MOD(B21,C21)) ->  | G21: =B21 ->  | H21: =IF(OR(E19=0,E19=""),"","=") ->  | I21: =IF(OR(E19=0,E19=""),""," " & C21&" x "&D21&" + "&E21) ->  | J21: =Sheet2!M5 -> 403 | L21: 성경 다음으로 많이 팔리고 있다는
J22: 넷수 | L22: 소문이 도는 유클리드 [원론]이라는 책의
B23: =IF(OR(E21="",E21=0),"",C21) ->  | C23: =IF(OR(E21="",E21=0),"",MOD(B21,C21)) ->  | D23: =IF(OR(E21="",E21=0),"",(B23-E23)/C23) ->  | E23: =IF(OR(E21="",E21=0),"",MOD(B23,C23)) ->  | G23: =B23 ->  | H23: =IF(OR(E21=0,E21=""),"","=") ->  | I23: =IF(OR(E21=0,E21=""),""," " & C23&" x "&D23&" + "&E23) ->  | J23: =Sheet2!M6 -> 5983 | L23: 제7권, 명제 1부터 3까지에 해당한다
B25: =IF(OR(E23="",E23=0),"",C23) ->  | C25: =IF(OR(E23="",E23=0),"",MOD(B23,C23)) ->  | D25: =IF(OR(E23="",E23=0),"",(B25-E25)/C25) ->  | E25: =IF(OR(E23="",E23=0),"",MOD(B25,C25)) ->  | G25: =B25 ->  | H25: =IF(OR(E23=0,E23=""),"","=") ->  | I25: =IF(OR(E23=0,E23=""),""," " & C25&" x "&D25&" + "&E25) ->  | L25: =F4&" = "& $I$4 &" x "&(F4/ $I$4) -> 527 = 31 x 17
L26: =G4&" = "& $I$4 &" x "&(G4/ $I$4) -> 5921 = 31 x 191
B27: =IF(OR(E25="",E25=0),"",C25) ->  | C27: =IF(OR(E25="",E25=0),"",MOD(B25,C25)) ->  | D27: =IF(OR(E25="",E25=0),"",(B27-E27)/C27) ->  | E27: =IF(OR(E25="",E25=0),"",MOD(B27,C27)) ->  | G27: =B27 ->  | H27: =IF(OR(E25=0,E25=""),"","=") ->  | I27: =IF(OR(E25=0,E25=""),""," " & C27&" x "&D27&" + "&E27) -> 
B29: =IF(OR(E27="",E27=0),"",C27) ->  | C29: =IF(OR(E27="",E27=0),"",MOD(B27,C27)) ->  | D29: =IF(OR(E27="",E27=0),"",(B29-E29)/C29) ->  | E29: =IF(OR(E27="",E27=0),"",MOD(B29,C29)) ->  | G29: =B29 ->  | H29: =IF(OR(E27=0,E27=""),"","=") ->  | I29: =IF(OR(E27=0,E27=""),""," " & C29&" x "&D29&" + "&E29) -> 
B31: =IF(OR(E29="",E29=0),"",C29) ->  | C31: =IF(OR(E29="",E29=0),"",MOD(B29,C29)) ->  | D31: =IF(OR(E29="",E29=0),"",(B31-E31)/C31) ->  | E31: =IF(OR(E29="",E29=0),"",MOD(B31,C31)) ->  | G31: =B31 ->  | H31: =IF(OR(E29=0,E29=""),"","=") ->  | I31: =IF(OR(E29=0,E29=""),""," " & C31&" x "&D31&" + "&E31) -> 
B33: =IF(OR(E31="",E31=0),"",C31) ->  | C33: =IF(OR(E31="",E31=0),"",MOD(B31,C31)) ->  | D33: =IF(OR(E31="",E31=0),"",(B33-E33)/C33) ->  | E33: =IF(OR(E31="",E31=0),"",MOD(B33,C33)) ->  | G33: =B33 ->  | H33: =IF(OR(E31=0,E31=""),"","=") ->  | I33: =IF(OR(E31=0,E31=""),""," " & C33&" x "&D33&" + "&E33) -> 
B35: =IF(OR(E33="",E33=0),"",C33) ->  | C35: =IF(OR(E33="",E33=0),"",MOD(B33,C33)) ->  | D35: =IF(OR(E33="",E33=0),"",(B35-E35)/C35) ->  | E35: =IF(OR(E33="",E33=0),"",MOD(B35,C35)) ->  | G35: =B35 ->  | H35: =IF(OR(E33=0,E33=""),"","=") ->  | I35: =IF(OR(E33=0,E33=""),""," " & C35&" x "&D35&" + "&E35) -> 
B37: =IF(OR(E35="",E35=0),"",C35) ->  | C37: =IF(OR(E35="",E35=0),"",MOD(B35,C35)) ->  | D37: =IF(OR(E35="",E35=0),"",(B37-E37)/C37) ->  | E37: =IF(OR(E35="",E35=0),"",MOD(B37,C37)) ->  | G37: =B37 ->  | H37: =IF(OR(E35=0,E35=""),"","=") ->  | I37: =IF(OR(E35=0,E35=""),""," " & C37&" x "&D37&" + "&E37) -> 
B39: =IF(OR(E37="",E37=0),"",C37) ->  | C39: =IF(OR(E37="",E37=0),"",MOD(B37,C37)) ->  | D39: =IF(OR(E37="",E37=0),"",(B39-E39)/C39) ->  | E39: =IF(OR(E37="",E37=0),"",MOD(B39,C39)) ->  | G39: =B39 ->  | H39: =IF(OR(E37=0,E37=""),"","=") ->  | I39: =IF(OR(E37=0,E37=""),""," " & C39&" x "&D39&" + "&E39) -> 
B41: =IF(OR(E39="",E39=0),"",C39) ->  | C41: =IF(OR(E39="",E39=0),"",MOD(B39,C39)) ->  | D41: =IF(OR(E39="",E39=0),"",(B41-E41)/C41) ->  | E41: =IF(OR(E39="",E39=0),"",MOD(B41,C41)) ->  | G41: =B41 ->  | H41: =IF(OR(E39=0,E39=""),"","=") ->  | I41: =IF(OR(E39=0,E39=""),""," " & C41&" x "&D41&" + "&E41) -> 
B43: =IF(OR(E41="",E41=0),"",C41) ->  | C43: =IF(OR(E41="",E41=0),"",MOD(B41,C41)) ->  | D43: =IF(OR(E41="",E41=0),"",(B43-E43)/C43) ->  | E43: =IF(OR(E41="",E41=0),"",MOD(B43,C43)) ->  | G43: =B43 ->  | H43: =IF(OR(E41=0,E41=""),"","=") ->  | I43: =IF(OR(E41=0,E41=""),""," " & C43&" x "&D43&" + "&E43) -> 
B45: =IF(OR(E43="",E43=0),"",C43) ->  | C45: =IF(OR(E43="",E43=0),"",MOD(B43,C43)) ->  | D45: =IF(OR(E43="",E43=0),"",(B45-E45)/C45) ->  | E45: =IF(OR(E43="",E43=0),"",MOD(B45,C45)) ->  | G45: =B45 ->  | H45: =IF(OR(E43=0,E43=""),"","=") ->  | I45: =IF(OR(E43=0,E43=""),""," " & C45&" x "&D45&" + "&E45) -> 
B47: =IF(OR(E45="",E45=0),"",C45) ->  | C47: =IF(OR(E45="",E45=0),"",MOD(B45,C45)) ->  | D47: =IF(OR(E45="",E45=0),"",(B47-E47)/C47) ->  | E47: =IF(OR(E45="",E45=0),"",MOD(B47,C47)) ->  | G47: =B47 ->  | H47: =IF(OR(E45=0,E45=""),"","=") ->  | I47: =IF(OR(E45=0,E45=""),""," " & C47&" x "&D47&" + "&E47) -> 
B49: =IF(OR(E47="",E47=0),"",C47) ->  | C49: =IF(OR(E47="",E47=0),"",MOD(B47,C47)) ->  | D49: =IF(OR(E47="",E47=0),"",(B49-E49)/C49) ->  | E49: =IF(OR(E47="",E47=0),"",MOD(B49,C49)) ->  | G49: =B49 ->  | H49: =IF(OR(E47=0,E47=""),"","=") ->  | I49: =IF(OR(E47=0,E47=""),""," " & C49&" x "&D49&" + "&E49) -> 
B51: =IF(OR(E49="",E49=0),"",C49) ->  | C51: =IF(OR(E49="",E49=0),"",MOD(B49,C49)) ->  | D51: =IF(OR(E49="",E49=0),"",(B51-E51)/C51) ->  | E51: =IF(OR(E49="",E49=0),"",MOD(B51,C51)) ->  | G51: =B51 ->  | H51: =IF(OR(E49=0,E49=""),"","=") ->  | I51: =IF(OR(E49=0,E49=""),""," " & C51&" x "&D51&" + "&E51) -> 
B53: =IF(OR(E51="",E51=0),"",C51) ->  | C53: =IF(OR(E51="",E51=0),"",MOD(B51,C51)) ->  | D53: =IF(OR(E51="",E51=0),"",(B53-E53)/C53) ->  | E53: =IF(OR(E51="",E51=0),"",MOD(B53,C53)) ->  | G53: =B53 ->  | H53: =IF(OR(E51=0,E51=""),"","=") ->  | I53: =IF(OR(E51=0,E51=""),""," " & C53&" x "&D53&" + "&E53) -> 
B55: =IF(OR(E53="",E53=0),"",C53) ->  | C55: =IF(OR(E53="",E53=0),"",MOD(B53,C53)) ->  | D55: =IF(OR(E53="",E53=0),"",(B55-E55)/C55) ->  | E55: =IF(OR(E53="",E53=0),"",MOD(B55,C55)) ->  | G55: =B55 ->  | H55: =IF(OR(E53=0,E53=""),"","=") ->  | I55: =IF(OR(E53=0,E53=""),""," " & C55&" x "&D55&" + "&E55) -> 

Sheet Sheet2
A1: 2, 3, 5, 7, 11, 13, 17, 19, 23, 29, 31, 37, 41, 43, 47, 53, 59, 61, 67, 71, 73, 79, 83, 89, 97, 101, 103, 107, 109, 113, 127, 131, 137, 139, 149, 151, 157, 163, 167, 173, 179, 181, 191, 193, 197, 199, 211, 223, 227, 229, 233, 239, 241, 251, 257, 263, 269, 271, 277, 281, 283, 293, 307, 311, 313, 317, 331, 337, 347, 349, 353, 359, 367, 373, 379, 383, 389, 397, 401, 409, 419, 421, 431, 433, 439, 443, 449, 457, 461, 463, 467, 479, 487, 491, 499, 503, 509, 521, 523, 541, 547, 557, 563, 569, 571, 577, 587, 593, 599, 601, 607, 613, 617, 619, 631, 641, 643, 647, 653, 659, 661, 673, 677, 683, 691, 701, 709, 719, 727, 733, 739, 743, 751, 757, 761, 769, 773, 787, 797, 809, 811, 821, 823, 827, 829, 839, 853, 857, 859, 863, 877, 881, 883, 887, 907, 911, 919, 929, 937, 941, 947, 953, 967, 971, 977, 983, 991, 997, 1009, 1013, 1019, 1021, 1031, 1033, 1039, 1049, 1051, 1061, 1063, 1069, 1087, 1091, 1093, 1097, 1103, 1109, 1117, 1123, 1129, 1151, 1153, 1163, 1171, 1181, 1187, 1193, 1201, 1213, 1217, 1223, 1229, 1231, 1237, 1249, 1259, 1277, 1279, 1283, 1289, 1291, 1297, 1301, 1303, 1307, 1319, 1321, 1327, 1361, 1367, 1373, 1381, 1399, 1409, 1423, 1427, 1429, 1433, 1439, 1447, 1451, 1453, 1459, 1471, 1481, 1483, 1487, 1489, 1493, 1499, 1511, 1523, 1531, 1543, 1549, 1553, 1559, 1567, 1571, 1579, 1583, 1597, 1601, 1607, 1609, 1613, 1619, 1621, 1627, 1637, 1657, 1663, 1667, 1669, 1693, 1697, 1699, 1709, 1721, 1723, 1733, 1741, 1747, 1753, 1759, 1777, 1783, 1787, 1789, 1801, 1811, 1823, 1831, 1847, 1861, 1867, 1871, 1873, 1877, 1879, 1889, 1901, 1907, 1913, 1931, 1933, 1949, 1951, 1973, 1979, 1987, 1993, 1997, 1999, 2003, 2011, 2017, 2027, 2029, 2039, 2053, 2063, 2069, 2081, 2083, 2087, 2089, 2099, 2111, 2113, 2129, 2131, 2137, 2141, 2143, 2153, 2161, 2179, 2203, 2207, 2213, 2221, 2237, 2239, 2243, 2251, 2267, 2269, 2273, 2281, 2287, 2293, 2297, 2309, 2311, 2333, 2339, 2341, 2347, 2351, 2357, 2371, 2377, 2381, 2383, 2389, 2393, 2399, 2411, 2417, 2423, 2437, 2441, 2447, 2459, 2467, 2473, 2477, 2503, 2521, 2531, 2539, 2543, 2549, 2551, 2557, 2579, 2591, 2593, 2609, 2617, 2621, 2633, 2647, 2657, 2659, 2663, 2671, 2677, 2683, 2687, 2689, 2693, 2699, 2707, 2711, 2713, 2719, 2729, 2731, 2741, 2749, 2753, 2767, 2777, 2789, 2791, 2797, 2801, 2803, 2819, 2833, 2837, 2843, 2851, 2857, 2861, 2879, 2887, 2897, 2903, 2909, 2917, 2927, 2939, 2953, 2957, 2963, 2969, 2971, 2999, 3001, 3011, 3019, 3023, 3037, 3041, 3049, 3061, 3067, 3079, 3083, 3089, 3109, 3119, 3121, 3137, 3163, 3167, 3169, 3181, 3187, 3191, 3203, 3209, 3217, 3221, 3229, 3251, 3253, 3257, 3259, 3271, 3299, 3301, 3307, 3313, 3319, 3323, 3329, 3331, 3343, 3347, 3359, 3361, 3371, 3373, 3389, 3391, 3407, 3413, 3433, 3449, 3457, 3461, 3463, 3467, 3469, 3491, 3499, 3511, 3517, 3527, 3529, 3533, 3539, 3541, 3547, 3557, 3559, 3571, 3581, 3583, 3593, 3607, 3613, 3617, 3623, 3631, 3637, 3643, 3659, 3671, 3673, 3677, 3691, 3697, 3701, 3709, 3719, 3727, 3733, 3739, 3761, 3767, 3769, 3779, 3793, 3797, 3803, 3821, 3823, 3833, 3847, 3851, 3853, 3863, 3877, 3881, 3889, 3907, 3911, 3917, 3919, 3923, 3929, 3931, 3943, 3947, 3967, 3989, 4001, 4003, 4007, 4013, 4019, 4021, 4027, 4049, 4051, 4057, 4073, 4079, 4091, 4093, 4099, 4111, 4127, 4129, 4133, 4139, 4153, 4157, 4159, 4177, 4201, 4211, 4217, 4219, 4229, 4231, 4241, 4243, 4253, 4259, 4261, 4271, 4273, 4283, 4289, 4297, 4327, 4337, 4339, 4349, 4357, 4363, 4373, 4391, 4397, 4409, 4421, 4423, 4441, 4447, 4451, 4457, 4463, 4481, 4483, 4493, 4507, 4513, 4517, 4519, 4523, 4547, 4549, 4561, 4567, 4583, 4591, 4597, 4603, 4621, 4637, 4639, 4643, 4649, 4651, 4657, 4663, 4673, 4679, 4691, 4703, 4721, 4723, 4729, 4733, 4751, 4759, 4783, 4787, 4789, 4793, 4799, 4801, 4813, 4817, 4831, 4861, 4871, 4877, 4889, 4903, 4909, 4919, 4931, 4933, 4937, 4943, 4951, 4957, 4967, 4969, 4973, 4987, 4993, 4999, 5003, 5009, 5011, 5021, 5023, 5039, 5051, 5059, 5077, 5081, 5087, 5099, 5101, 5107, 5113, 5119, 5147, 5153, 5167, 5171, 5179, 5189, 5197, 5209, 5227, 5231, 5233, 5237, 5261, 5273, 5279, 5281, 5297, 5303, 5309, 5323, 5333, 5347, 5351, 5381, 5387, 5393, 5399, 5407, 5413, 5417, 5419, 5431, 5437, 5441, 5443, 5449, 5471, 5477, 5479, 5483, 5501, 5503, 5507, 5519, 5521, 5527, 5531, 5557, 5563, 5569, 5573, 5581, 5591, 5623, 5639, 5641, 5647, 5651, 5653, 5657, 5659, 5669, 5683, 5689, 5693, 5701, 5711, 5717, 5737, 5741, 5743, 5749, 5779, 5783, 5791, 5801, 5807, 5813, 5821, 5827, 5839, 5843, 5849, 5851, 5857, 5861, 5867, 5869, 5879, 5881, 5897, 5903, 5923, 5927, 5939, 5953, 5981, 5987, 6007, 6011, 6029, 6037, 6043, 6047, 6053, 6067, 6073, 6079, 6089, 6091, 6101, 6113, 6121, 6131, 6133, 6143, 6151, 6163, 6173, 6197, 6199, 6203, 6211, 6217, 6221, 6229, 6247, 6257, 6263, 6269, 6271, 6277, 6287, 6299, 6301, 6311, 6317, 6323, 6329, 6337, 6343, 6353, 6359, 6361, 6367, 6373, 6379, 6389, 6397, 6421, 6427, 6449, 6451, 6469, 6473, 6481, 6491, 6521, 6529, 6547, 6551, 6553, 6563, 6569, 6571, 6577, 6581, 6599, 6607, 6619, 6637, 6653, 6659, 6661, 6673, 6679, 6689, 6691, 6701, 6703, 6709, 6719, 6733, 6737, 6761, 6763, 6779, 6781, 6791, 6793, 6803, 6823, 6827, 6829, 6833, 6841, 6857, 6863, 6869, 6871, 6883, 6899, 6907, 6911, 6917, 6947, 6949, 6959, 6961, 6967, 6971, 6977, 6983, 6991, 6997, 7001, 7013, 7019, 7027, 7039, 7043, 7057, 7069, 7079, 7103, 7109, 7121, 7127, 7129, 7151, 7159, 7177, 7187, 7193, 7207, 7211, 7213, 7219, 7229, 7237, 7243, 7247, 7253, 7283, 7297, 7307, 7309, 7321, 7331, 7333, 7349, 7351, 7369, 7393, 7411, 7417, 7433, 7451, 7457, 7459, 7477, 7481, 7487, 7489, 7499, 7507, 7517, 7523, 7529, 7537, 7541, 7547, 7549, 7559, 7561, 7573, 7577, 7583, 7589, 7591, 7603, 7607, 7621, 7639, 7643, 7649, 7669, 7673, 7681, 7687, 7691, 7699, 7703, 7717, 7723, 7727, 7741, 7753, 7757, 7759, 7789, 7793, 7817, 7823, 7829, 7841, 7853, 7867, 7873, 7877, 7879, 7883, 7901, 7907, 7919, 7927, 7933, 7937, 7949, 7951, 7963, 7993, 8009, 8011, 8017, 8039, 8053, 8059, 8069, 8081, 8087, 8089, 8093, 8101, 8111, 8117, 8123, 8147, 8161, 8167, 8171, 8179, 8191, 8209, 8219, 8221, 8231, 8233, 8237, 8243, 8263, 8269, 8273, 8287, 8291, 8293, 8297, 8311, 8317, 8329, 8353, 8363, 8369, 8377, 8387, 8389, 8419, 8423, 8429, 8431, 8443, 8447, 8461, 8467, 8501, 8513, 8521, 8527, 8537, 8539, 8543, 8563, 8573, 8581, 8597, 8599, 8609, 8623, 8627, 8629, 8641, 8647, 8663, 8669, 8677, 8681, 8689, 8693, 8699, 8707, 8713, 8719, 8731, 8737, 8741, 8747, 8753, 8761, 8779, 8783, 8803, 8807, 8819, 8821, 8831, 8837, 8839, 8849, 8861, 8863, 8867, 8887, 8893, 8923, 8929, 8933, 8941, 8951, 8963, 8969, 8971, 8999, 9001, 9007, 9011, 9013, 9029, 9041, 9043, 9049, 9059, 9067, 9091, 9103, 9109, 9127, 9133, 9137, 9151, 9157, 9161, 9173, 9181, 9187, 9199, 9203, 9209, 9221, 9227, 9239, 9241, 9257, 9277, 9281, 9283, 9293, 9311, 9319, 9323, 9337, 9341, 9343, 9349, 9371, 9377, 9391, 9397, 9403, 9413, 9419, 9421, 9431, 9433, 9437, 9439, 9461, 9463, 9467, 9473, 9479, 9491, 9497, 9511, 9521, 9533, 9539, 9547, 9551, 9587, 9601, 9613, 9619, 9623, 9629, 9631, 9643, 9649, 9661, 9677, 9679, 9689, 9697, 9719, 9721, 9733, 9739, 9743, 9749, 9767, 9769, 9781, 9787, 9791, 9803, 9811, 9817, 9829, 9833, 9839, 9851, 9857, 9859, 9871, 9883, 9887, 9901, 9907, 9923, 9929, 9931, 9941, 9949, 9967, 9973 | B1: INDEX | E1: 소수 | G1: =MAX(B:B) -> 1228 | H1: index | I1: 소수 | L1: 연습장
A2: , | B2: 1 | C2: 1 | D2: =FIND($A$2,$A$1,$C2) -> 2 | E2: =MID($A$1,$C2,D2-C2) -> 2 | G2: 3 | H2: =RANDBETWEEN($G$7,$G$9) -> 10 | I2: =INT(VLOOKUP(H2,$B:$E,4)) -> 29 | J2: 공약수 | L2: 31 | M2: 공약수
B3: =B2+1 -> 2 | C3: =D2+1 -> 3 | D3: =FIND($A$2,$A$1,$C3) -> 5 | E3: =MID($A$1,$C3+1,D3-C3-1) -> 3 | H3: =RANDBETWEEN($G$7,$G$9) -> 46 | I3: =INT(VLOOKUP(H3,$B:$E,4)) -> 199 | J3: =$I$2*I3 -> 5771 | L3: 191 | M3: 5921
B4: =B3+1 -> 3 | C4: =D3+1 -> 6 | D4: =FIND($A$2,$A$1,$C4) -> 8 | E4: =MID($A$1,$C4+1,D4-C4-1) -> 5 | H4: 14 | I4: =INT(VLOOKUP(H4,$B:$E,4)) -> 43 | J4: =$I$2*I4 -> 1247 | L4: 17 | M4: 527
B5: 4 | C5: 9 | D5: 11 | E5: 7 | H5: 36 | I5: 151 | J5: 4379 | L5: 13 | M5: 403
B6: 5 | C6: 12 | D6: 15 | E6: 11 | G6: 최소(~번째) | H6: 22 | I6: 79 | J6: 2291 | L6: 193 | M6: 5983
B7: 6 | C7: 16 | D7: 19 | E7: 13 | G7: 1 | H7: 20 | I7: 71 | J7: 2059 | L7: 101 | M7: 3131
B8: 7 | C8: 20 | D8: 23 | E8: 17 | G8: 최대(~번째) | H8: 14 | I8: 43 | J8: 1247 | L8: 193 | M8: 5983
B9: 8 | C9: 24 | D9: 27 | E9: =MID($A$1,$C9+1,D9-C9-1) -> 19 | G9: 50 | H9: 13 | I9: 41 | J9: 1189 | L9: 229 | M9: 7099
B10: 9 | C10: 28 | D10: 31 | E10: 23 | H10: 19 | I10: 67 | J10: 1943 | L10: 13 | M10: 403
B11: 10 | C11: 32 | D11: 35 | E11: 29
B12: 11 | C12: 36 | D12: 39 | E12: 31
B13: 12 | C13: 40 | D13: 43 | E13: 37
B14: 13 | C14: 44 | D14: 47 | E14: 41
B15: 14 | C15: 48 | D15: 51 | E15: 43
B16: 15 | C16: 52 | D16: 55 | E16: 47
B17: 16 | C17: 56 | D17: 59 | E17: 53
B18: 17 | C18: 60 | D18: 63 | E18: 59
B19: 18 | C19: 64 | D19: 67 | E19: 61
B20: 19 | C20: 68 | D20: 71 | E20: 67
B21: 20 | C21: 72 | D21: 75 | E21: 71
B22: 21 | C22: 76 | D22: 79 | E22: 73
B23: 22 | C23: 80 | D23: 83 | E23: 79
B24: 23 | C24: 84 | D24: 87 | E24: 83
B25: 24 | C25: 88 | D25: 91 | E25: 89
B26: 25 | C26: 92 | D26: 95 | E26: 97
B27: 26 | C27: 96 | D27: 100 | E27: =MID($A$1,$C27+1,D27-C27-1) -> 101
B28: 27 | C28: 101 | D28: 105 | E28: 103
B29: 28 | C29: 106 | D29: 110 | E29: 107
B30: 29 | C30: 111 | D30: 115 | E30: 109
B31: 30 | C31: 116 | D31: 120 | E31: 113
B32: 31 | C32: 121 | D32: 125 | E32: 127
B33: 32 | C33: 126 | D33: 130 | E33: 131
B34: 33 | C34: 131 | D34: 135 | E34: 137
B35: 34 | C35: 136 | D35: 140 | E35: 139
B36: 35 | C36: 141 | D36: 145 | E36: 149
B37: 36 | C37: 146 | D37: 150 | E37: 151
B38: 37 | C38: 151 | D38: 155 | E38: 157
B39: 38 | C39: 156 | D39: 160 | E39: 163
B40: 39 | C40: 161 | D40: 165 | E40: 167
B41: 40 | C41: 166 | D41: 170 | E41: 173
B42: 41 | C42: 171 | D42: 175 | E42: 179
B43: 42 | C43: 176 | D43: 180 | E43: 181
B44: 43 | C44: 181 | D44: 185 | E44: 191
B45: 44 | C45: 186 | D45: 190 | E45: 193
B46: 45 | C46: 191 | D46: 195 | E46: 197
B47: 46 | C47: 196 | D47: 200 | E47: 199
B48: 47 | C48: 201 | D48: 205 | E48: 211
B49: 48 | C49: 206 | D49: 210 | E49: 223
B50: 49 | C50: 211 | D50: 215 | E50: 227
B51: 50 | C51: 216 | D51: 220 | E51: 229
B52: 51 | C52: 221 | D52: 225 | E52: 233
B53: 52 | C53: 226 | D53: 230 | E53: 239
B54: 53 | C54: 231 | D54: 235 | E54: 241
B55: 54 | C55: 236 | D55: 240 | E55: 251
B56: 55 | C56: 241 | D56: 245 | E56: 257
B57: 56 | C57: 246 | D57: 250 | E57: 263
B58: 57 | C58: 251 | D58: 255 | E58: 269
B59: 58 | C59: 256 | D59: 260 | E59: 271
B60: 59 | C60: 261 | D60: 265 | E60: 277
B61: 60 | C61: 266 | D61: 270 | E61: 281
B62: 61 | C62: 271 | D62: 275 | E62: 283
B63: 62 | C63: 276 | D63: 280 | E63: 293
B64: 63 | C64: 281 | D64: 285 | E64: 307
B65: 64 | C65: 286 | D65: 290 | E65: 311
B66: 65 | C66: 291 | D66: 295 | E66: 313
B67: 66 | C67: 296 | D67: 300 | E67: 317
B68: =B67+1 -> 67 | C68: =D67+1 -> 301 | D68: =FIND($A$2,$A$1,$C68) -> 305 | E68: 331
B69: 68 | C69: 306 | D69: 310 | E69: 337
B70: 69 | C70: 311 | D70: 315 | E70: 347
B71: 70 | C71: 316 | D71: 320 | E71: 349
B72: 71 | C72: 321 | D72: 325 | E72: 353
B73: 72 | C73: 326 | D73: 330 | E73: 359
B74: 73 | C74: 331 | D74: 335 | E74: 367
B75: 74 | C75: 336 | D75: 340 | E75: 373
B76: 75 | C76: 341 | D76: 345 | E76: 379
B77: 76 | C77: 346 | D77: 350 | E77: 383
B78: 77 | C78: 351 | D78: 355 | E78: 389
B79: 78 | C79: 356 | D79: 360 | E79: 397
B80: 79 | C80: 361 | D80: 365 | E80: 401
B81: 80 | C81: 366 | D81: 370 | E81: 409
B82: 81 | C82: 371 | D82: 375 | E82: 419
B83: 82 | C83: 376 | D83: 380 | E83: 421
B84: 83 | C84: 381 | D84: 385 | E84: 431
B85: 84 | C85: 386 | D85: 390 | E85: 433
B86: 85 | C86: 391 | D86: 395 | E86: 439
B87: 86 | C87: 396 | D87: 400 | E87: 443
B88: 87 | C88: 401 | D88: 405 | E88: 449
B89: 88 | C89: 406 | D89: 410 | E89: 457
B90: 89 | C90: 411 | D90: 415 | E90: 461
B91: 90 | C91: 416 | D91: 420 | E91: =MID($A$1,$C91+1,D91-C91-1) -> 463
B92: 91 | C92: 421 | D92: 425 | E92: 467
B93: 92 | C93: 426 | D93: 430 | E93: 479
B94: 93 | C94: 431 | D94: 435 | E94: 487
B95: 94 | C95: 436 | D95: 440 | E95: 491
B96: 95 | C96: 441 | D96: 445 | E96: 499
B97: 96 | C97: 446 | D97: 450 | E97: 503
B98: 97 | C98: 451 | D98: 455 | E98: 509
B99: 98 | C99: 456 | D99: 460 | E99: 521
B100: 99 | C100: 461 | D100: 465 | E100: 523
B101: 100 | C101: 466 | D101: 470 | E101: 541
B102: 101 | C102: 471 | D102: 475 | E102: 547
B103: 102 | C103: 476 | D103: 480 | E103: 557
B104: 103 | C104: 481 | D104: 485 | E104: 563
B105: 104 | C105: 486 | D105: 490 | E105: 569
B106: 105 | C106: 491 | D106: 495 | E106: 571
B107: 106 | C107: 496 | D107: 500 | E107: 577
B108: 107 | C108: 501 | D108: 505 | E108: 587
B109: 108 | C109: 506 | D109: 510 | E109: 593
B110: 109 | C110: 511 | D110: 515 | E110: 599
B111: 110 | C111: 516 | D111: 520 | E111: 601
B112: 111 | C112: 521 | D112: 525 | E112: 607
B113: 112 | C113: 526 | D113: 530 | E113: 613
B114: 113 | C114: 531 | D114: 535 | E114: 617
B115: 114 | C115: 536 | D115: 540 | E115: 619
B116: 115 | C116: 541 | D116: 545 | E116: 631
B117: 116 | C117: 546 | D117: 550 | E117: 641
B118: 117 | C118: 551 | D118: 555 | E118: 643
B119: 118 | C119: 556 | D119: 560 | E119: 647
B120: 119 | C120: 561 | D120: 565 | E120: 653
B121: 120 | C121: 566 | D121: 570 | E121: 659
B122: 121 | C122: 571 | D122: 575 | E122: 661
B123: 122 | C123: 576 | D123: 580 | E123: 673
B124: 123 | C124: 581 | D124: 585 | E124: 677
B125: 124 | C125: 586 | D125: 590 | E125: 683
B126: 125 | C126: 591 | D126: 595 | E126: 691
B127: 126 | C127: 596 | D127: 600 | E127: 701
B128: 127 | C128: 601 | D128: 605 | E128: 709
B129: 128 | C129: 606 | D129: 610 | E129: 719
B130: 129 | C130: 611 | D130: 615 | E130: 727
B131: 130 | C131: 616 | D131: 620 | E131: 733
B132: =B131+1 -> 131 | C132: =D131+1 -> 621 | D132: =FIND($A$2,$A$1,$C132) -> 625 | E132: 739
B133: 132 | C133: 626 | D133: 630 | E133: 743
B134: 133 | C134: 631 | D134: 635 | E134: 751
B135: 134 | C135: 636 | D135: 640 | E135: 757
B136: 135 | C136: 641 | D136: 645 | E136: 761
B137: 136 | C137: 646 | D137: 650 | E137: 769
B138: 137 | C138: 651 | D138: 655 | E138: 773
B139: 138 | C139: 656 | D139: 660 | E139: 787
B140: 139 | C140: 661 | D140: 665 | E140: 797
B141: 140 | C141: 666 | D141: 670 | E141: 809
B142: 141 | C142: 671 | D142: 675 | E142: 811
B143: 142 | C143: 676 | D143: 680 | E143: 821
B144: 143 | C144: 681 | D144: 685 | E144: 823
B145: 144 | C145: 686 | D145: 690 | E145: 827
B146: 145 | C146: 691 | D146: 695 | E146: 829
B147: 146 | C147: 696 | D147: 700 | E147: 839
B148: 147 | C148: 701 | D148: 705 | E148: 853
B149: 148 | C149: 706 | D149: 710 | E149: 857
B150: 149 | C150: 711 | D150: 715 | E150: 859
B151: 150 | C151: 716 | D151: 720 | E151: 863
B152: 151 | C152: 721 | D152: 725 | E152: 877
B153: 152 | C153: 726 | D153: 730 | E153: 881
B154: 153 | C154: 731 | D154: 735 | E154: 883
B155: 154 | C155: 736 | D155: 740 | E155: =MID($A$1,$C155+1,D155-C155-1) -> 887
B156: 155 | C156: 741 | D156: 745 | E156: 907
B157: 156 | C157: 746 | D157: 750 | E157: 911
B158: 157 | C158: 751 | D158: 755 | E158: 919
B159: 158 | C159: 756 | D159: 760 | E159: 929
B160: 159 | C160: 761 | D160: 765 | E160: 937
B161: 160 | C161: 766 | D161: 770 | E161: 941
B162: 161 | C162: 771 | D162: 775 | E162: 947
B163: 162 | C163: 776 | D163: 780 | E163: 953
B164: 163 | C164: 781 | D164: 785 | E164: 967
B165: 164 | C165: 786 | D165: 790 | E165: 971
B166: 165 | C166: 791 | D166: 795 | E166: 977
B167: 166 | C167: 796 | D167: 800 | E167: 983
B168: 167 | C168: 801 | D168: 805 | E168: 991
B169: 168 | C169: 806 | D169: 810 | E169: 997
B170: 169 | C170: 811 | D170: 816 | E170: 1009
B171: 170 | C171: 817 | D171: 822 | E171: 1013
B172: 171 | C172: 823 | D172: 828 | E172: 1019
B173: 172 | C173: 829 | D173: 834 | E173: 1021
B174: 173 | C174: 835 | D174: 840 | E174: 1031
B175: 174 | C175: 841 | D175: 846 | E175: 1033
B176: 175 | C176: 847 | D176: 852 | E176: 1039
B177: 176 | C177: 853 | D177: 858 | E177: 1049
B178: 177 | C178: 859 | D178: 864 | E178: 1051
B179: 178 | C179: 865 | D179: 870 | E179: 1061
B180: 179 | C180: 871 | D180: 876 | E180: 1063
B181: 180 | C181: 877 | D181: 882 | E181: 1069
B182: 181 | C182: 883 | D182: 888 | E182: 1087
B183: 182 | C183: 889 | D183: 894 | E183: 1091
B184: 183 | C184: 895 | D184: 900 | E184: 1093
B185: 184 | C185: 901 | D185: 906 | E185: 1097
B186: 185 | C186: 907 | D186: 912 | E186: 1103
B187: 186 | C187: 913 | D187: 918 | E187: 1109
B188: 187 | C188: 919 | D188: 924 | E188: 1117
B189: 188 | C189: 925 | D189: 930 | E189: 1123
B190: 189 | C190: 931 | D190: 936 | E190: 1129
B191: 190 | C191: 937 | D191: 942 | E191: 1151
B192: 191 | C192: 943 | D192: 948 | E192: 1153
B193: 192 | C193: 949 | D193: 954 | E193: =MID($A$1,$C193+1,D193-C193-1) -> 1163
B194: 193 | C194: 955 | D194: 960 | E194: 1171
B195: 194 | C195: 961 | D195: 966 | E195: 1181
B196: =B195+1 -> 195 | C196: =D195+1 -> 967 | D196: =FIND($A$2,$A$1,$C196) -> 972 | E196: 1187
B197: 196 | C197: 973 | D197: 978 | E197: 1193
B198: 197 | C198: 979 | D198: 984 | E198: 1201
B199: 198 | C199: 985 | D199: 990 | E199: 1213
B200: 199 | C200: 991 | D200: 996 | E200: 1217
... 1029 more rows
